[Event "Titled Tuesday Blitz April 4 Early 2023"]
[White "Vakhlamov, Igor L."]
[Black "Postnikov, Daniil"]
[WhiteFideId "24126748"]
[BlackFideId "4166329"]
[WhiteElo "2400"]
[BlackElo "2261"]
[Result "1-0"]
[Round "04"]
[TimeControl "180+2"]
[Date "2023.04.04"]
[WhiteClock "0:00:18"]
[BlackClock "0:00:07"]

1. e4 {[%clk 0:02:57]}  e6 {[%clk 0:02:57]} 2. d4 {[%clk 0:02:57]}  d5 {[%clk 0:02:57]} 3. Nc3 {[%clk 0:02:57]}  Nf6 {[%clk 0:02:56]} 4. Bd3 {[%clk 0:02:57]}  c5 {[%clk 0:02:52]} 5. Nf3 {[%clk 0:02:57]}  cxd4 {[%clk 0:02:47]} 6. Nxd4 {[%clk 0:02:57]}  Nc6 {[%clk 0:02:48]} 7. Bb5 {[%clk 0:02:55]}  Bd7 {[%clk 0:02:47]} 8. exd5 {[%clk 0:02:55]}  exd5 {[%clk 0:02:47]} 9. O-O {[%clk 0:02:54]}  Be7 {[%clk 0:02:44]} 10. Be2 {[%clk 0:02:55]}  O-O {[%clk 0:02:44]} 11. Bf3 {[%clk 0:02:53]}  Re8 {[%clk 0:02:40]} 12. Nxd5 {[%clk 0:02:47]}  Nxd5 {[%clk 0:02:39]} 13. Bxd5 {[%clk 0:02:48]}  Nxd4 {[%clk 0:02:38]} 14. Qxd4 {[%clk 0:02:47]}  Bc6 {[%clk 0:02:36]} 15. c4 {[%clk 0:02:42]}  Bf6 {[%clk 0:02:36]} 16. Qd3 {[%clk 0:02:38]}  Qd7 {[%clk 0:02:24]} 17. Rd1 {[%clk 0:02:31]}  Rad8 {[%clk 0:02:22]} 18. Be3 {[%clk 0:02:15]}  Bxb2 {[%clk 0:02:12]} 19. Rab1 {[%clk 0:02:14]}  Bf6 {[%clk 0:02:13]} 20. Bxa7 {[%clk 0:02:00]}  Ra8 {[%clk 0:02:13]} 21. Bd4 {[%clk 0:01:45]}  Bxd4 {[%clk 0:02:08]} 22. Qxd4 {[%clk 0:01:46]}  Rxa2 {[%clk 0:02:09]} 23. h4 {[%clk 0:01:41]}  h6 {[%clk 0:02:03]} 24. Re1 {[%clk 0:01:39]}  Rae2 {[%clk 0:01:57]} 25. Rxe2 {[%clk 0:01:36]}  Rxe2 {[%clk 0:01:58]} 26. Rd1 {[%clk 0:01:29]}  Qf5 {[%clk 0:01:56]} 27. g3 {[%clk 0:01:22]}  Qc2 {[%clk 0:01:49]} 28. Ra1 {[%clk 0:01:17]}  Rd2 {[%clk 0:01:44]} 29. Ra8+ {[%clk 0:00:36]}  Kh7 {[%clk 0:01:43]} 30. Qf4 {[%clk 0:00:36]}  Bxd5 {[%clk 0:01:32]} 31. cxd5 {[%clk 0:00:37]}  Qd1+ {[%clk 0:01:25]} 32. Kh2 {[%clk 0:00:36]}  Rxd5 {[%clk 0:01:18]} 33. Qxf7 {[%clk 0:00:35]}  Rd8 {[%clk 0:01:17]} 34. Ra7 {[%clk 0:00:31]}  Qd7 {[%clk 0:01:13]} 35. Rxb7 {[%clk 0:00:29]}  Qxf7 {[%clk 0:01:12]} 36. Rxf7 {[%clk 0:00:29]}  h5 {[%clk 0:01:09]} 37. Kg2 {[%clk 0:00:28]}  Rd3 {[%clk 0:01:08]} 38. Rf3 {[%clk 0:00:28]}  Rd2 {[%clk 0:01:04]} 39. Ra3 {[%clk 0:00:27]}  g6 {[%clk 0:01:02]} 40. Kf3 {[%clk 0:00:28]}  Rb2 {[%clk 0:01:00]} 41. Ke3 {[%clk 0:00:27]}  Kg7 {[%clk 0:00:58]} 42. Ra4 {[%clk 0:00:26]}  Kf6 {[%clk 0:00:51]} 43. f3 {[%clk 0:00:26]}  Rb3+ {[%clk 0:00:49]} 44. Kf4 {[%clk 0:00:26]}  Kg7 {[%clk 0:00:49]} 45. Ra5 {[%clk 0:00:21]}  Kh6 {[%clk 0:00:47]} 46. Ra4 {[%clk 0:00:15]}  Rb5 {[%clk 0:00:44]} 47. Re4 {[%clk 0:00:15]}  Ra5 {[%clk 0:00:40]} 48. Ke3 {[%clk 0:00:14]}  Rb5 {[%clk 0:00:39]} 49. f4 {[%clk 0:00:13]}  Rb3+ {[%clk 0:00:37]} 50. Kf2 {[%clk 0:00:14]}  Kg7 {[%clk 0:00:36]} 51. Re3 {[%clk 0:00:14]}  Rb4 {[%clk 0:00:32]} 52. Kf3 {[%clk 0:00:14]}  Ra4 {[%clk 0:00:32]} 53. Re6 {[%clk 0:00:13]}  Ra3+ {[%clk 0:00:28]} 54. Re3 {[%clk 0:00:14]}  Ra4 {[%clk 0:00:29]} 55. Rd3 {[%clk 0:00:15]}  Rb4 {[%clk 0:00:28]} 56. Rc3 {[%clk 0:00:15]}  Ra4 {[%clk 0:00:28]} 57. Rc5 {[%clk 0:00:15]}  Ra3+ {[%clk 0:00:27]} 58. Kg2 {[%clk 0:00:16]}  Rb3 {[%clk 0:00:26]} 59. Rg5 {[%clk 0:00:15]}  Kh6 {[%clk 0:00:25]} 60. Kf2 {[%clk 0:00:15]}  Ra3 {[%clk 0:00:24]} 61. Kg2 {[%clk 0:00:11]}  Rb3 {[%clk 0:00:24]} 62. f5 {[%clk 0:00:11]}  gxf5 {[%clk 0:00:24]} 63. Rxf5 {[%clk 0:00:12]}  Ra3 {[%clk 0:00:24]} 64. Re5 {[%clk 0:00:12]}  Rb3 {[%clk 0:00:24]} 65. Kf2 {[%clk 0:00:13]}  Ra3 {[%clk 0:00:22]} 66. Re3 {[%clk 0:00:14]}  Ra4 {[%clk 0:00:18]} 67. Kf3 {[%clk 0:00:13]}  Kg6 {[%clk 0:00:16]} 68. Re4 {[%clk 0:00:14]}  Ra1 {[%clk 0:00:11]} 69. Re6+ {[%clk 0:00:14]}  Kf5 {[%clk 0:00:10]} 70. Rh6 {[%clk 0:00:14]}  Rf1+ {[%clk 0:00:10]} 71. Kg2 {[%clk 0:00:14]}  Ra1 {[%clk 0:00:03]} 72. Rxh5+ {[%clk 0:00:15]}  Kg6 {[%clk 0:00:04]} 73. Rg5+ {[%clk 0:00:15]}  Kh6 {[%clk 0:00:04]} 74. Re5 {[%clk 0:00:16]}  Ra2+ {[%clk 0:00:05]} 75. Kf3 {[%clk 0:00:17]}  Ra3+ {[%clk 0:00:05]} 76. Kf4 {[%clk 0:00:17]}  Ra2 {[%clk 0:00:06]} 77. g4 {[%clk 0:00:17]}  Rf2+ {[%clk 0:00:07]} 78. Kg3 {[%clk 0:00:17]}  Rf1 {[%clk 0:00:07]} 79. Re6+ {[%clk 0:00:17]}  Kg7 {[%clk 0:00:08]} 80. g5 {[%clk 0:00:18]}  Rg1+ {[%clk 0:00:08]} 81. Kf4 {[%clk 0:00:18]}  Rh1 {[%clk 0:00:08]} 82. Kg4 {[%clk 0:00:18]}  Rg1+ {[%clk 0:00:08]} 83. Kh5 {[%clk 0:00:18]}  Kh7 {[%clk 0:00:09]} 84. Re7+ {[%clk 0:00:19]}  Kg8 {[%clk 0:00:09]} 85. Kg6 {[%clk 0:00:18]}  Kf8 {[%clk 0:00:10]} 86. Rf7+ {[%clk 0:00:18]}  Kg8 {[%clk 0:00:09]} 87. Ra7 {[%clk 0:00:18]}  Kf8 {[%clk 0:00:07]} 88. h5 {[%clk 0:00:18]} 1-0


[Site "https://www.chess.com"]

[Event "Titled Tuesday Blitz April 4 Early 2023"]
[White "Adla, Diego"]
[Black "Hayrapetyan, Artavazd R."]
[WhiteFideId "100072"]
[BlackFideId "13304240"]
[WhiteElo "2377"]
[BlackElo "2417"]
[Result "1-0"]
[Round "04"]
[TimeControl "180+2"]
[Date "2023.04.04"]
[WhiteClock "0:00:06"]
[BlackClock "0:00:04"]

1. c4 {[%clk 0:02:53]}  e6 {[%clk 0:02:59]} 2. g3 {[%clk 0:02:52]}  d5 {[%clk 0:03:00]} 3. Bg2 {[%clk 0:02:52]}  Nf6 {[%clk 0:03:00]} 4. Nf3 {[%clk 0:02:52]}  Be7 {[%clk 0:02:59]} 5. O-O {[%clk 0:02:52]}  O-O {[%clk 0:03:00]} 6. d4 {[%clk 0:02:52]}  Nbd7 {[%clk 0:03:00]} 7. Qc2 {[%clk 0:02:51]}  c6 {[%clk 0:03:00]} 8. Rd1 {[%clk 0:02:50]}  b6 {[%clk 0:03:01]} 9. b3 {[%clk 0:02:49]}  Bb7 {[%clk 0:03:02]} 10. Nc3 {[%clk 0:02:49]}  Rc8 {[%clk 0:03:02]} 11. e4 {[%clk 0:02:49]}  h6 {[%clk 0:02:48]} 12. Bf4 {[%clk 0:02:29]}  Bb4 {[%clk 0:02:45]} 13. e5 {[%clk 0:02:20]}  Ne8 {[%clk 0:02:45]} 14. Rac1 {[%clk 0:02:14]}  Nc7 {[%clk 0:02:45]} 15. Qe2 {[%clk 0:02:10]}  Re8 {[%clk 0:02:36]} 16. h4 {[%clk 0:02:07]}  Bf8 {[%clk 0:02:33]} 17. h5 {[%clk 0:01:57]}  c5 {[%clk 0:02:32]} 18. dxc5 {[%clk 0:01:47]}  Nxc5 {[%clk 0:02:33]} 19. Nd4 {[%clk 0:01:42]}  a6 {[%clk 0:02:22]} 20. cxd5 {[%clk 0:01:36]}  Nxd5 {[%clk 0:02:22]} 21. Nxd5 {[%clk 0:01:36]}  Bxd5 {[%clk 0:02:22]} 22. Bxd5 {[%clk 0:01:25]}  exd5 {[%clk 0:02:22]} 23. Qg4 {[%clk 0:01:26]}  Qd7 {[%clk 0:02:07]} 24. Qxd7 {[%clk 0:01:14]}  Nxd7 {[%clk 0:02:08]} 25. Rxc8 {[%clk 0:01:14]}  Rxc8 {[%clk 0:02:09]} 26. Nf5 {[%clk 0:01:14]}  Nc5 {[%clk 0:01:58]} 27. Rxd5 {[%clk 0:01:12]}  Ne6 {[%clk 0:01:54]} 28. Be3 {[%clk 0:01:09]}  b5 {[%clk 0:01:48]} 29. Rd7 {[%clk 0:01:08]}  Rc2 {[%clk 0:01:46]} 30. a4 {[%clk 0:01:04]}  bxa4 {[%clk 0:01:45]} 31. bxa4 {[%clk 0:01:04]}  Ra2 {[%clk 0:01:45]} 32. Nd6 {[%clk 0:01:00]}  Bxd6 {[%clk 0:01:33]} 33. exd6 {[%clk 0:00:59]}  Rxa4 {[%clk 0:01:34]} 34. Ra7 {[%clk 0:00:59]}  Ra5 {[%clk 0:01:01]} 35. d7 {[%clk 0:00:56]}  Rd5 {[%clk 0:01:00]} 36. Bb6 {[%clk 0:00:57]}  Kh7 {[%clk 0:00:58]} 37. f4 {[%clk 0:00:46]}  f5 {[%clk 0:00:42]} 38. Kf2 {[%clk 0:00:38]}  Rd6 {[%clk 0:00:42]} 39. Ba5 {[%clk 0:00:27]}  Rd3 {[%clk 0:00:21]} 40. g4 {[%clk 0:00:22]}  fxg4 {[%clk 0:00:17]} 41. f5 {[%clk 0:00:22]}  Rf3+ {[%clk 0:00:16]} 42. Kg2 {[%clk 0:00:22]}  Rxf5 {[%clk 0:00:16]} 43. Rxa6 {[%clk 0:00:22]}  Rd5 {[%clk 0:00:09]} 44. Rxe6 {[%clk 0:00:19]}  Rxd7 {[%clk 0:00:09]} 45. Re5 {[%clk 0:00:19]}  Rd3 {[%clk 0:00:09]} 46. Be1 {[%clk 0:00:19]}  Rh3 {[%clk 0:00:07]} 47. Bg3 {[%clk 0:00:18]}  Kg8 {[%clk 0:00:08]} 48. Rf5 {[%clk 0:00:16]}  Kh7 {[%clk 0:00:07]} 49. Kf2 {[%clk 0:00:15]}  Kg8 {[%clk 0:00:08]} 50. Kg2 {[%clk 0:00:15]}  Kh7 {[%clk 0:00:08]} 51. Bf2 {[%clk 0:00:16]}  Kg8 {[%clk 0:00:08]} 52. Bd4 {[%clk 0:00:15]}  Rh4 {[%clk 0:00:03]} 53. Kg3 {[%clk 0:00:14]}  Rh1 {[%clk 0:00:04]} 54. Rd5 {[%clk 0:00:12]}  Rd1 {[%clk 0:00:03]} 55. Rd7 {[%clk 0:00:11]}  Rd3+ {[%clk 0:00:02]} 56. Kxg4 {[%clk 0:00:12]}  Rd1 {[%clk 0:00:02]} 57. Kf5 {[%clk 0:00:11]}  Rf1+ {[%clk 0:00:02]} 58. Kg6 {[%clk 0:00:11]}  Kf8 {[%clk 0:00:01]} 59. Rxg7 {[%clk 0:00:07]}  Ke8 {[%clk 0:00:02]} 60. Kxh6 {[%clk 0:00:06]}  Rf4 {[%clk 0:00:03]} 61. Be5 {[%clk 0:00:05]}  Rf5 {[%clk 0:00:04]} 62. Rg5 {[%clk 0:00:06]}  Rf1 {[%clk 0:00:04]} 63. Kg6 {[%clk 0:00:06]}  Kf8 {[%clk 0:00:04]} 64. h6 {[%clk 0:00:06]}  Rh1 {[%clk 0:00:04]} 65. h7 {[%clk 0:00:06]} 1-0


[Site "https://www.chess.com"]

[Event "Titled Tuesday Blitz April 4 Early 2023"]
[White "Samsonkin, Artiom"]
[Black "Martic, Ivan"]
[WhiteFideId "13503111"]
[BlackFideId "929301"]
[WhiteElo "2524"]
[BlackElo "2360"]
[Result "1-0"]
[Round "04"]
[TimeControl "180+2"]
[Date "2023.04.04"]
[WhiteClock "0:00:08"]
[BlackClock "0:00:05"]

1. d4 {[%clk 0:03:00]}  d5 {[%clk 0:02:56]} 2. Nf3 {[%clk 0:03:01]}  Nc6 {[%clk 0:02:56]} 3. e3 {[%clk 0:02:59]}  Bg4 {[%clk 0:02:56]} 4. c4 {[%clk 0:02:59]}  e5 {[%clk 0:02:53]} 5. Be2 {[%clk 0:02:42]}  Bb4+ {[%clk 0:02:47]} 6. Nc3 {[%clk 0:02:42]}  exd4 {[%clk 0:02:46]} 7. exd4 {[%clk 0:02:42]}  dxc4 {[%clk 0:02:41]} 8. d5 {[%clk 0:02:38]}  Bxc3+ {[%clk 0:02:32]} 9. bxc3 {[%clk 0:02:39]}  Nce7 {[%clk 0:02:27]} 10. Qa4+ {[%clk 0:02:21]}  Qd7 {[%clk 0:02:18]} 11. Qxc4 {[%clk 0:02:19]}  Bxf3 {[%clk 0:02:01]} 12. Bxf3 {[%clk 0:02:19]}  Nf6 {[%clk 0:02:00]} 13. O-O {[%clk 0:02:19]}  O-O {[%clk 0:01:57]} 14. Rd1 {[%clk 0:02:08]}  Nf5 {[%clk 0:01:54]} 15. Bg5 {[%clk 0:01:59]}  Nd6 {[%clk 0:01:37]} 16. Qh4 {[%clk 0:01:46]}  Qf5 {[%clk 0:01:20]} 17. Rd4 {[%clk 0:01:34]}  Rfe8 {[%clk 0:01:13]} 18. h3 {[%clk 0:01:22]}  h6 {[%clk 0:00:56]} 19. Be3 {[%clk 0:01:07]}  Qe5 {[%clk 0:00:52]} 20. Re1 {[%clk 0:01:00]}  Nf5 {[%clk 0:00:52]} 21. Qf4 {[%clk 0:00:46]}  Nxd4 {[%clk 0:00:50]} 22. Qxd4 {[%clk 0:00:40]}  Qxd4 {[%clk 0:00:49]} 23. cxd4 {[%clk 0:00:41]}  Rad8 {[%clk 0:00:48]} 24. Rb1 {[%clk 0:00:36]}  b6 {[%clk 0:00:48]} 25. d6 {[%clk 0:00:21]}  Rxd6 {[%clk 0:00:46]} 26. Rc1 {[%clk 0:00:21]}  Re7 {[%clk 0:00:40]} 27. Bf4 {[%clk 0:00:19]}  Rxd4 {[%clk 0:00:37]} 28. Bxc7 {[%clk 0:00:19]}  Rd2 {[%clk 0:00:35]} 29. a4 {[%clk 0:00:18]}  Nd5 {[%clk 0:00:32]} 30. Bd6 {[%clk 0:00:15]}  Re8 {[%clk 0:00:24]} 31. Bg3 {[%clk 0:00:10]}  Rd8 {[%clk 0:00:17]} 32. h4 {[%clk 0:00:10]}  g6 {[%clk 0:00:17]} 33. Rc4 {[%clk 0:00:09]}  h5 {[%clk 0:00:16]} 34. Kh2 {[%clk 0:00:09]}  Kf8 {[%clk 0:00:14]} 35. Rc6 {[%clk 0:00:09]}  Ne7 {[%clk 0:00:12]} 36. Rc7 {[%clk 0:00:09]}  R2d7 {[%clk 0:00:12]} 37. Rc4 {[%clk 0:00:08]}  Nf5 {[%clk 0:00:12]} 38. Bf4 {[%clk 0:00:09]}  Re7 {[%clk 0:00:10]} 39. Bg5 {[%clk 0:00:08]}  Red7 {[%clk 0:00:08]} 40. Bxd8 {[%clk 0:00:07]}  Rxd8 {[%clk 0:00:09]} 41. Rc7 {[%clk 0:00:07]}  Nxh4 {[%clk 0:00:09]} 42. Bc6 {[%clk 0:00:06]}  Rd6 {[%clk 0:00:08]} 43. Bb5 {[%clk 0:00:05]}  a5 {[%clk 0:00:08]} 44. Bc4 {[%clk 0:00:06]}  Rf6 {[%clk 0:00:07]} 45. g3 {[%clk 0:00:05]}  Nf5 {[%clk 0:00:07]} 46. f4 {[%clk 0:00:05]}  Nd4 {[%clk 0:00:07]} 47. Kg2 {[%clk 0:00:05]}  Nf5 {[%clk 0:00:07]} 48. Kf3 {[%clk 0:00:05]}  Ke8 {[%clk 0:00:06]} 49. Ke4 {[%clk 0:00:04]}  Nd6+ {[%clk 0:00:06]} 50. Ke5 {[%clk 0:00:05]}  Nxc4+ {[%clk 0:00:07]} 51. Kxf6 {[%clk 0:00:04]}  Nd6 {[%clk 0:00:06]} 52. Re7+ {[%clk 0:00:04]}  Kf8 {[%clk 0:00:06]} 53. Rd7 {[%clk 0:00:05]}  Ne4+ {[%clk 0:00:06]} 54. Ke5 {[%clk 0:00:06]}  Nc5 {[%clk 0:00:06]} 55. Rc7 {[%clk 0:00:05]}  Nxa4 {[%clk 0:00:06]} 56. Kf6 {[%clk 0:00:04]}  Ke8 {[%clk 0:00:05]} 57. Re7+ {[%clk 0:00:05]}  Kd8 {[%clk 0:00:05]} 58. Rxf7 {[%clk 0:00:05]}  b5 {[%clk 0:00:06]} 59. Kxg6 {[%clk 0:00:06]}  b4 {[%clk 0:00:06]} 60. f5 {[%clk 0:00:07]}  b3 {[%clk 0:00:06]} 61. Rb7 {[%clk 0:00:08]}  b2 {[%clk 0:00:05]} 62. f6 {[%clk 0:00:07]}  Kc8 {[%clk 0:00:03]} 63. Rb3 {[%clk 0:00:06]}  Nc5 {[%clk 0:00:03]} 64. Rxb2 {[%clk 0:00:06]}  a4 {[%clk 0:00:03]} 65. Rc2 {[%clk 0:00:06]}  Kd7 {[%clk 0:00:03]} 66. Rxc5 {[%clk 0:00:07]}  a3 {[%clk 0:00:04]} 67. Ra5 {[%clk 0:00:08]}  a2 {[%clk 0:00:05]} 68. Rxa2 {[%clk 0:00:08]} 1-0


[Site "https://www.chess.com"]

[Event "Titled Tuesday Blitz April 4 Early 2023"]
[White "Sielecki, Christof"]
[Black "Corrales Jimenez, Fidel"]
[WhiteFideId "4620437"]
[BlackFideId "3506690"]
[WhiteElo "2443"]
[BlackElo "2541"]
[Result "0-1"]
[Round "04"]
[TimeControl "180+2"]
[Date "2023.04.04"]
[WhiteClock "0:00:01"]
[BlackClock "0:00:09"]

1. e4 {[%clk 0:03:00]}  d5 {[%clk 0:02:59]} 2. exd5 {[%clk 0:03:00]}  Qxd5 {[%clk 0:03:00]} 3. Nc3 {[%clk 0:03:00]}  Qa5 {[%clk 0:03:00]} 4. d4 {[%clk 0:03:00]}  c6 {[%clk 0:03:00]} 5. Nf3 {[%clk 0:02:59]}  Nf6 {[%clk 0:03:01]} 6. Bc4 {[%clk 0:02:58]}  Bf5 {[%clk 0:03:00]} 7. Ne5 {[%clk 0:02:58]}  e6 {[%clk 0:03:00]} 8. g4 {[%clk 0:02:58]}  Be4 {[%clk 0:03:00]} 9. O-O {[%clk 0:02:54]}  Bd5 {[%clk 0:02:58]} 10. g5 {[%clk 0:02:54]}  Bxc4 {[%clk 0:02:57]} 11. Nxc4 {[%clk 0:02:49]}  Qa6 {[%clk 0:02:57]} 12. Qe2 {[%clk 0:02:43]}  Nd5 {[%clk 0:02:56]} 13. Ne4 {[%clk 0:02:37]}  Nd7 {[%clk 0:02:30]} 14. Re1 {[%clk 0:01:58]}  N7b6 {[%clk 0:02:27]} 15. Ncd6+ {[%clk 0:01:33]}  Bxd6 {[%clk 0:02:27]} 16. Nxd6+ {[%clk 0:01:34]}  Ke7 {[%clk 0:02:27]} 17. Qe5 {[%clk 0:01:08]}  g6 {[%clk 0:01:50]} 18. Nxf7 {[%clk 0:00:58]}  Rhe8 {[%clk 0:00:59]} 19. Qg7 {[%clk 0:00:40]}  Kd7 {[%clk 0:01:00]} 20. Ne5+ {[%clk 0:00:32]}  Kc8 {[%clk 0:01:00]} 21. c4 {[%clk 0:00:28]}  Re7 {[%clk 0:00:44]} 22. Qf8+ {[%clk 0:00:15]}  Kc7 {[%clk 0:00:44]} 23. Qf3 {[%clk 0:00:10]}  Nxc4 {[%clk 0:00:44]} 24. Bf4 {[%clk 0:00:08]}  Nxe5 {[%clk 0:00:44]} 25. Bxe5+ {[%clk 0:00:08]}  Kd7 {[%clk 0:00:44]} 26. Bf6 {[%clk 0:00:07]}  Ree8 {[%clk 0:00:40]} 27. Re2 {[%clk 0:00:05]}  b6 {[%clk 0:00:29]} 28. Rae1 {[%clk 0:00:05]}  Rac8 {[%clk 0:00:29]} 29. Qg4 {[%clk 0:00:06]}  Kc7 {[%clk 0:00:22]} 30. Rxe6 {[%clk 0:00:05]}  Rxe6 {[%clk 0:00:22]} 31. Qxe6 {[%clk 0:00:05]}  Kb7 {[%clk 0:00:19]} 32. Be5 {[%clk 0:00:04]}  Ka8 {[%clk 0:00:15]} 33. Rc1 {[%clk 0:00:02]}  Qb7 {[%clk 0:00:15]} 34. a3 {[%clk 0:00:01]}  b5 {[%clk 0:00:10]} 35. Qd6 {[%clk 0:00:01]}  a6 {[%clk 0:00:09]} 0-1


[Site "https://www.chess.com"]

[Event "Titled Tuesday Blitz April 4 Early 2023"]
[White "Kovalev, Vladislav"]
[Black "Hnydiuk, Aleksander"]
[WhiteFideId "13504398"]
[BlackFideId "1109057"]
[WhiteElo "2555"]
[BlackElo "2374"]
[Result "1-0"]
[Round "04"]
[TimeControl "180+2"]
[Date "2023.04.04"]
[WhiteClock "0:00:20"]
[BlackClock "0:00:10"]

1. e4 {[%clk 0:02:57]}  e5 {[%clk 0:02:53]} 2. Nf3 {[%clk 0:02:57]}  Nf6 {[%clk 0:02:53]} 3. Nxe5 {[%clk 0:02:56]}  d6 {[%clk 0:02:53]} 4. Nf3 {[%clk 0:02:56]}  Nxe4 {[%clk 0:02:53]} 5. Nc3 {[%clk 0:02:57]}  Nxc3 {[%clk 0:02:53]} 6. dxc3 {[%clk 0:02:58]}  Be7 {[%clk 0:02:54]} 7. Be3 {[%clk 0:02:58]}  O-O {[%clk 0:02:54]} 8. Qd2 {[%clk 0:02:58]}  Nd7 {[%clk 0:02:54]} 9. O-O-O {[%clk 0:02:56]}  Nf6 {[%clk 0:02:55]} 10. Bd3 {[%clk 0:02:53]}  c5 {[%clk 0:02:52]} 11. h3 {[%clk 0:02:46]}  Be6 {[%clk 0:02:51]} 12. Kb1 {[%clk 0:02:45]}  Qa5 {[%clk 0:02:50]} 13. c4 {[%clk 0:02:34]}  Qxd2 {[%clk 0:02:51]} 14. Bxd2 {[%clk 0:02:24]}  h6 {[%clk 0:02:50]} 15. Rhe1 {[%clk 0:02:22]}  d5 {[%clk 0:02:40]} 16. cxd5 {[%clk 0:02:17]}  Nxd5 {[%clk 0:02:41]} 17. Ne5 {[%clk 0:01:22]}  Rfd8 {[%clk 0:02:40]} 18. Be4 {[%clk 0:01:10]}  Rac8 {[%clk 0:02:37]} 19. c4 {[%clk 0:01:03]}  Nb6 {[%clk 0:02:22]} 20. b3 {[%clk 0:00:55]}  Rc7 {[%clk 0:02:17]} 21. Bf4 {[%clk 0:00:55]}  Rd4 {[%clk 0:01:25]} 22. Rxd4 {[%clk 0:00:50]}  cxd4 {[%clk 0:01:25]} 23. Nxf7 {[%clk 0:00:49]}  Bb4 {[%clk 0:01:12]} 24. Bxc7 {[%clk 0:00:35]}  Bxe1 {[%clk 0:01:12]} 25. Nd8 {[%clk 0:00:33]}  Bd7 {[%clk 0:00:57]} 26. f4 {[%clk 0:00:28]}  Nc8 {[%clk 0:00:27]} 27. Nxb7 {[%clk 0:00:26]}  Ne7 {[%clk 0:00:18]} 28. Nc5 {[%clk 0:00:27]}  Bc8 {[%clk 0:00:13]} 29. Be5 {[%clk 0:00:26]}  Nf5 {[%clk 0:00:12]} 30. Nd3 {[%clk 0:00:25]}  Bg3 {[%clk 0:00:11]} 31. c5 {[%clk 0:00:22]}  Ne3 {[%clk 0:00:10]} 32. Bxd4 {[%clk 0:00:20]} 1-0


[Site "https://www.chess.com"]

[Event "Titled Tuesday Blitz April 4 Early 2023"]
[White "Urazayev, Arystanbek"]
[Black "Gabdrakhmanov, Azat"]
[WhiteFideId "13709810"]
[BlackFideId "34189197"]
[WhiteElo "2449"]
[BlackElo "2306"]
[Result "0-1"]
[Round "04"]
[TimeControl "180+2"]
[Date "2023.04.04"]
[WhiteClock "0:00:07"]
[BlackClock "0:00:11"]

1. d4 {[%clk 0:03:00]}  Nf6 {[%clk 0:03:00]} 2. c4 {[%clk 0:03:01]}  g6 {[%clk 0:03:00]} 3. Nc3 {[%clk 0:03:01]}  Bg7 {[%clk 0:02:59]} 4. e4 {[%clk 0:03:02]}  O-O {[%clk 0:03:00]} 5. Be2 {[%clk 0:03:02]}  d6 {[%clk 0:03:00]} 6. Be3 {[%clk 0:03:02]}  Na6 {[%clk 0:03:00]} 7. Nf3 {[%clk 0:03:02]}  e5 {[%clk 0:03:00]} 8. d5 {[%clk 0:03:00]}  Ng4 {[%clk 0:02:55]} 9. Bg5 {[%clk 0:03:00]}  f6 {[%clk 0:02:54]} 10. Bh4 {[%clk 0:03:00]}  Qe8 {[%clk 0:02:47]} 11. Nd2 {[%clk 0:02:59]}  Nh6 {[%clk 0:02:45]} 12. O-O {[%clk 0:02:54]}  g5 {[%clk 0:02:43]} 13. Bg3 {[%clk 0:02:54]}  f5 {[%clk 0:02:43]} 14. f3 {[%clk 0:02:52]}  f4 {[%clk 0:02:40]} 15. Bf2 {[%clk 0:02:52]}  Rf7 {[%clk 0:02:38]} 16. a3 {[%clk 0:02:29]}  Bf8 {[%clk 0:02:38]} 17. b4 {[%clk 0:02:28]}  Rg7 {[%clk 0:02:37]} 18. h3 {[%clk 0:02:14]}  Nf7 {[%clk 0:02:26]} 19. c5 {[%clk 0:02:05]}  h5 {[%clk 0:02:22]} 20. Nc4 {[%clk 0:01:51]}  g4 {[%clk 0:02:06]} 21. fxg4 {[%clk 0:01:51]}  hxg4 {[%clk 0:02:05]} 22. hxg4 {[%clk 0:01:49]}  Nh6 {[%clk 0:02:04]} 23. cxd6 {[%clk 0:01:40]}  cxd6 {[%clk 0:01:57]} 24. b5 {[%clk 0:01:26]}  Nb8 {[%clk 0:01:28]} 25. Bh4 {[%clk 0:00:59]}  Bxg4 {[%clk 0:01:14]} 26. Qd3 {[%clk 0:00:18]}  Qh5 {[%clk 0:00:55]} 27. Bd8 {[%clk 0:00:17]}  Nd7 {[%clk 0:00:50]} 28. Bc7 {[%clk 0:00:14]}  Rg6 {[%clk 0:00:31]} 29. b6 {[%clk 0:00:11]}  axb6 {[%clk 0:00:26]} 30. Nxb6 {[%clk 0:00:11]}  Nxb6 {[%clk 0:00:21]} 31. Bxb6 {[%clk 0:00:11]}  Rc8 {[%clk 0:00:20]} 32. Bf3 {[%clk 0:00:06]}  Bxf3 {[%clk 0:00:13]} 33. Rxf3 {[%clk 0:00:07]}  Ng4 {[%clk 0:00:13]} 34. Rg3 {[%clk 0:00:07]}  fxg3 {[%clk 0:00:13]} 35. Rf1 {[%clk 0:00:07]}  Qh2# {[%clk 0:00:11]} 0-1


[Site "https://www.chess.com"]

[Event "Titled Tuesday Blitz April 4 Early 2023"]
[White "Zemlyanskii, Ivan"]
[Black "Lymar, Vladislav"]
[WhiteFideId "24249971"]
[BlackFideId "14162180"]
[WhiteElo "2419"]
[BlackElo "2234"]
[Result "1-0"]
[Round "04"]
[TimeControl "180+2"]
[Date "2023.04.04"]
[WhiteClock "0:00:38"]
[BlackClock "0:01:29"]

1. d4 {[%clk 0:03:00]}  d5 {[%clk 0:02:59]} 2. Bf4 {[%clk 0:02:58]}  c5 {[%clk 0:02:58]} 3. e3 {[%clk 0:02:55]}  Nc6 {[%clk 0:02:58]} 4. c3 {[%clk 0:02:50]}  Nf6 {[%clk 0:02:58]} 5. Nf3 {[%clk 0:02:50]}  Qb6 {[%clk 0:02:57]} 6. Qc2 {[%clk 0:02:46]}  c4 {[%clk 0:02:55]} 7. Nbd2 {[%clk 0:02:36]}  Bg4 {[%clk 0:02:48]} 8. b3 {[%clk 0:02:30]}  cxb3 {[%clk 0:02:48]} 9. axb3 {[%clk 0:02:31]}  e6 {[%clk 0:02:45]} 10. Bd3 {[%clk 0:02:29]}  Rc8 {[%clk 0:02:40]} 11. Qb2 {[%clk 0:02:21]}  Be7 {[%clk 0:02:27]} 12. O-O {[%clk 0:02:21]}  O-O {[%clk 0:02:26]} 13. Ne5 {[%clk 0:02:15]}  Bf5 {[%clk 0:02:20]} 14. Be2 {[%clk 0:02:02]}  Ne4 {[%clk 0:02:10]} 15. Nd7 {[%clk 0:01:54]}  Qd8 {[%clk 0:02:04]} 16. Nxf8 {[%clk 0:01:53]}  Qxf8 {[%clk 0:02:04]} 17. Nxe4 {[%clk 0:01:53]}  Bxe4 {[%clk 0:01:58]} 18. Rfc1 {[%clk 0:01:48]}  a6 {[%clk 0:01:57]} 19. b4 {[%clk 0:01:42]}  g5 {[%clk 0:01:57]} 20. Bg3 {[%clk 0:01:41]}  f5 {[%clk 0:01:57]} 21. f3 {[%clk 0:01:39]}  f4 {[%clk 0:01:55]} 22. fxe4 {[%clk 0:01:36]}  fxg3 {[%clk 0:01:53]} 23. hxg3 {[%clk 0:01:37]}  dxe4 {[%clk 0:01:51]} 24. Qb3 {[%clk 0:01:32]}  Qh6 {[%clk 0:01:45]} 25. Bg4 {[%clk 0:01:29]}  Nd8 {[%clk 0:01:42]} 26. d5 {[%clk 0:01:23]}  Bd6 {[%clk 0:01:38]} 27. dxe6 {[%clk 0:01:20]}  Bxg3 {[%clk 0:01:36]} 28. e7+ {[%clk 0:00:38]}  Nf7 {[%clk 0:01:35]} 29. Bxc8 {[%clk 0:00:37]}  Qh2+ {[%clk 0:01:33]} 30. Kf1 {[%clk 0:00:37]}  Qh1+ {[%clk 0:01:29]} 31. Ke2 {[%clk 0:00:38]}  Qxg2+ {[%clk 0:01:29]} 32. Kd1 {[%clk 0:00:38]} 1-0


[Site "https://www.chess.com"]